[Event "XI Paracin Festival 2018"]
[Site "Paracin"]
[Date "2018.07.06"]
[Round "1"]
[White "Bergsson, Stefan"]
[Black "Tan, Justin"]
[Result "0-1"]
[ECO "B01"]
[WhiteElo "2192"]
[BlackElo "2481"]
[Annotator "ChessBase"]
[PlyCount "62"]
[EventDate "2018.07.06"]
[EventType "swiss"]
[EventCountry "SRB"]
[SourceTitle "playchess.com"]
[Source "ChessBase"]
[SourceQuality "1"]
[TimeControl "5400+30"]

1. e4 {[%emt 0:10:59]} d5 {[%emt 0:00:00]} 2. exd5 {[%emt 0:00:03]} Qxd5 {[%emt 0:00:18]} 3. Nc3 {[%emt 0:00:02]} Qd6 {[%emt 0:00:18]} 4. d4 Nf6 {[%emt 0:00:35]} 5. Nf3 {[%emt 0:01:35]} c6 {[%emt 0:00:12]} 6. Bc4 {[%emt 0:01:51]} Bg4 {[%emt 0:02:42]} 7. O-O {[%emt 0:02:15]} Nbd7 {[%emt 0:01:45]} 8. Re1 {[%emt 0:00:26]} Bxf3 {[%emt 0:06:01]} 9. Qxf3 {[%emt 0:01:14]} Qxd4 {[%emt 0:00:17]} 10. Bb3 {[%emt 0:00:04]} Qg4 {[%emt 0:02:12]} 11. Qe3 {[%emt 0:03:35]} e5 {[%emt 0:07:02]} 12. Ne4 {[%emt 0:02:48]} Qxe4 {[%emt 0:11:33]} 13. Qxe4 {[%emt 0:13:34]} Nxe4 {[%emt 0:00:04]} 14. Rxe4 {[%emt 0:00:02]} Bc5 {[%emt 0:03:04]} 15. Be3 {[%emt 0:05:26]} f5 {[%emt 0:03:17]} 16. Rc4 {[%emt 0:08:44]} Bxe3 {[%emt 0:00:16]} 17. fxe3 {[%emt 0:00:04]} Ke7 {[%emt 0:00:46]} 18. a4 {[%emt 0:02:06]} a5 {[%emt 0:01:22]} 19. Rf1 {[%emt 0:00:16]} g6 {[%emt 0:05:00]} 20. h4 {[%emt 0:00:02]} Rhf8 {[%emt 0:03:59]} 21. g4 {[%emt 0:00:38]} Nb6 {[%emt 0:03:06]} 22. Rc5 {[%emt 0:00:25]} Kd6 {[%emt 0:00:20]} 23. Rc3 {[%emt 0:02:08]} fxg4 {[%emt 0:00:55]} 24. Rd1+ {[%emt 0:00:01]} Ke7 {[%emt 0:01:17]} 25. Rc5 {[%emt 0:00:45]} Nd7 {[%emt 0:00:22]} 26. Rc4 {[%emt 0:00:11]} h5 {[%emt 0:05:47]} 27. c3 {[%emt 0:10:44]} Rad8 {[%emt 0:03:56]} 28. Re4 {[%emt 0:00:15]} Rf6 {[%emt 0:02:37]} 29. Rc4 {[%emt 0:03:13]} Nb6 {[%emt 0:04:19]} 30. Re4 {[%emt 0:02:41]} Rxd1+ {[%emt 0:00:23]} 31. Bxd1 {[%emt 0:09:35]} Rd6 {[%emt 0:00:38]} 0-1

[Event "XI Paracin Festival 2018"]
[Site "Paracin"]
[Date "2018.07.06"]
[Round "1"]
[White "Cirovic, Miroljub"]
[Black "Petrov, Martin"]
[Result "0-1"]
[ECO "E15"]
[WhiteElo "2183"]
[BlackElo "2441"]
[Annotator "ChessBase"]
[PlyCount "90"]
[EventDate "2018.07.06"]
[EventType "swiss"]
[EventCountry "SRB"]
[SourceTitle "playchess.com"]
[Source "ChessBase"]
[SourceQuality "1"]
[TimeControl "5400+30"]

1. d4 {[%emt 0:00:00]} Nf6 {[%emt 0:00:00]} 2. c4 {[%emt 0:00:00]} e6 {[%emt 0:00:00]} 3. Nf3 {[%emt 0:00:00]} b6 {[%emt 0:00:00]} 4. g3 {[%emt 0:00:00]} Ba6 {[%emt 0:00:00]} 5. Nbd2 {[%emt 0:00:19]} Bb4 {[%emt 0:03:47]} 6. Qc2 {[%emt 0:02:08]} Bb7 {[%emt 0:09:25]} 7. Bg2 {[%emt 0:00:08]} Be4 {[%emt 0:00:42]} 8. Qb3 {[%emt 0:00:05]} Bxd2+ {[%emt 0:00:14]} 9. Bxd2 {[%emt 0:00:06]} O-O {[%emt 0:00:06]} 10. O-O {[%emt 0:00:05]} d6 {[%emt 0:00:34]} 11. Rfd1 {[%emt 0:02:42]} Nbd7 {[%emt 0:01:29]} 12. Qe3 {[%emt 0:02:18]} Qc8 {[%emt 0:07:35]} 13. Bc3 {[%emt 0:00:12]} Qa6 {[%emt 0:01:32]} 14. a4 {[%emt 0:03:34]} Rac8 {[%emt 0:10:56]} 15. b4 {[%emt 0:01:32]} Qb7 {[%emt 0:02:02]} 16. Bh3 {[%emt 0:02:14]} c6 {[%emt 0:08:18]} 17. Nd2 {[%emt 0:01:04]} Bg6 {[%emt 0:02:06]} 18. f3 {[%emt 0:02:36]} b5 {[%emt 0:01:36]} 19. Rdc1 {[%emt 0:05:49]} Nb6 {[%emt 0:01:25]} 20. Qf4 {[%emt 0:08:40]} Qe7 {[%emt 0:05:26]} 21. axb5 {[%emt 0:02:32]} cxb5 {[%emt 0:00:06]} 22. c5 {[%emt 0:00:18]} Nfd5 {[%emt 0:01:41]} 23. Qh4 {[%emt 0:04:47]} Qxh4 {[%emt 0:01:13]} 24. gxh4 {[%emt 0:00:05]} Na4 {[%emt 0:00:18]} 25. Ra3 {[%emt 0:00:18]} dxc5 {[%emt 0:08:27]} 26. dxc5 {[%emt 0:00:22]} Ndxc3 {[%emt 0:02:24]} 27. Raxc3 {[%emt 0:00:34]} Nxc3 {[%emt 0:00:17]} 28. Rxc3 {[%emt 0:00:06]} Rfd8 {[%emt 0:02:53]} 29. Nb3 {[%emt 0:00:12]} Rd1+ {[%emt 0:00:55]} 30. Kf2 {[%emt 0:00:06]} Kf8 {[%emt 0:01:16]} 31. Bg2 {[%emt 0:01:05]} Ke7 {[%emt 0:03:00]} 32. f4 {[%emt 0:00:08]} f6 {[%emt 0:00:24]} 33. Na5 {[%emt 0:01:28]} Be8 {[%emt 0:00:42]} 34. f5 {[%emt 0:04:32]} Rd4 {[%emt 0:03:21]} 35. Nb7 {[%emt 0:02:04]} Rxb4 {[%emt 0:04:29]} 36. Nd6 {[%emt 0:00:22]} Rxc5 {[%emt 0:02:44]} 37. Rxc5 {[%emt 0:00:08]} Kxd6 {[%emt 0:00:04]} 38. Rc8 {[%emt 0:00:04]} Bd7 {[%emt 0:00:16]} 39. Rg8 {[%emt 0:00:52]} exf5 {[%emt 0:00:43]} 40. h5 {[%emt 0:00:36]} Rf4+ {[%emt 0:03:51]} 41. Bf3 {[%emt 0:00:41]} b4 {[%emt 0:00:33]} 42. Ke3 {[%emt 0:00:25]} Rc4 {[%emt 0:00:46]} 43. Ra8 {[%emt 0:02:00]} Rc7 {[%emt 0:01:09]} 44. Rb8 {[%emt 0:00:10]} a5 {[%emt 0:00:13]} 45. Ra8 {[%emt 0:00:15]} a4 {[%emt 0:00:13]} 0-1

[Event "XI Paracin Festival 2018"]
[Site "Paracin"]
[Date "2018.07.06"]
[Round "1"]
[White "Gochev, Mladen"]
[Black "Arsovic, Zoran"]
[Result "0-1"]
[ECO "A45"]
[WhiteElo "2181"]
[BlackElo "2436"]
[Annotator "NA"]
[PlyCount "77"]
[EventDate "2018.07.06"]
[EventType "swiss"]
[EventCountry "SRB"]
[SourceTitle "playchess.com"]
[Source "ChessBase"]
[SourceQuality "1"]
[TimeControl "5400+30"]

1. d4 {[%emt 0:00:00]} Nf6 {[%emt 0:00:00]} 2. g3 {[%emt 0:00:20]} c5 {[%emt 0:02:40]} 3. dxc5 {[%emt 0:05:03]} e6 {[%emt 0:01:54]} 4. Bg2 {[%emt 0:00:56]} Bxc5 {[%emt 0:00:52]} 5. Nf3 {[%emt 0:00:46]} O-O {[%emt 0:00:55] A46: 1 d4 Nf6 2 Nf3 e6: Torre, London and Colle Systems} (5... d5 6. c4 Nc6 7. cxd5 exd5 8. O-O O-O 9. Nbd2 Bb6 10. Nb3 d4 11. Bf4 Re8 12. Qd3 Bg4 13. Rfd1 Qe7 14. h3 Nb4 15. Qb5 d3 16. exd3 Bd7 17. Qg5 h6 {0-1 (41) Stupak,K (2502)-Sutovsky,E (2665) Plovdiv 2010}) 6. O-O {[%emt 0:00:18] LiveBook: 7 Games} d5 {[%emt 0:04:22]} 7. b3 {[%emt 0:00:45]} Nc6 {[%emt 0:06:33]} 8. Bb2 {[%emt 0:01:30]} Qe7 {[%emt 0:02:06]} 9. Ne5 {[%emt 0:03:20]} Nxe5 $146 {[%emt 0:04:46]} ({Predecessor:} 9... Rd8 10. Nd2 Nxe5 11. Bxe5 b6 12. Qc1 Bb7 13. a3 a5 14. Qb2 Ne8 15. Bd4 Rac8 16. Bxc5 bxc5 {½-½ (45) Muehlberg,S-Handel,H Leipzig 1956}) 10. Bxe5 {[%emt 0:00:03]} Rd8 {[%emt 0:00:11]} 11. e3 {[%emt 0:02:12]} Bd7 {[%emt 0:03:05]} 12. Qe2 {[%emt 0:03:46]} Rac8 {[%emt 0:05:34]} 13. Rc1 {[%emt 0:13:47]} Be8 {[%emt 0:19:24]} 14. a3 {[%emt 0:00:59]} a6 {[%emt 0:04:03]} 15. Bd4 {[%emt 0:05:37]} Bb5 {[%emt 0:01:26]} 16. Qe1 {[%emt 0:00:32]} Bd6 {[%emt 0:00:25]} 17. a4 {[%emt 0:03:46]} Bc6 {[%emt 0:03:25]} 18. Nd2 {[%emt 0:02:03]} e5 {[%emt 0:05:38]} 19. Bb2 {[%emt 0:00:51]} Qe6 {[%emt 0:02:22]} 20. Qe2 {[%emt 0:00:29]} h5 {[%emt 0:02:08]} 21. c4 {[%emt 0:03:38]} h4 {[%emt 0:06:04]} 22. cxd5 {[%emt 0:05:21]} Bxd5 {[%emt 0:00:09]} 23. Rxc8 {[%emt 0:04:57]} Rxc8 {[%emt 0:00:07]} 24. Bxd5 {[%emt 0:00:07]} Nxd5 {[%emt 0:03:55]} 25. Nc4 {[%emt 0:01:36]} Bb8 {[%emt 0:04:10]} 26. Rd1 {[%emt 0:01:21]} Nf6 {[%emt 0:00:22]} 27. a5 {[%emt 0:00:57]} Qf5 {[%emt 0:01:21]} 28. f3 {[%emt 0:02:25]} hxg3 {[%emt 0:05:29]} 29. hxg3 {[%emt 0:01:30]} Qg5 {[%emt 0:00:17]} 30. Kg2 {[%emt 0:03:44]} Nh5 {[%emt 0:00:50]} 31. g4 {[%emt 0:02:48]} e4 {[%emt 0:01:46]} 32. Rh1 {[%emt 0:08:59]} Ng3 {[%emt 0:02:54]} 33. f4 {[%emt 0:00:14]} Qxf4 {[%emt 0:00:16]} (33... Nxe2 $2 {perishes.} 34. fxg5 Rc5 35. Rd1 $18) 34. exf4 {[%emt 0:01:01]} Nxe2 {[%emt 0:00:03]} 35. f5 {[%emt 0:00:20]} Nf4+ $17 {[%emt 0:00:21]} 36. Kf1 {[%emt 0:05:45]} Rd8 {[%emt 0:00:26]} 37. Ke1 {[%emt 0:00:30]} Rd3 {[%emt 0:02:22]} 38. Rh2 {[%emt 0:01:49]} Rxb3 {[%emt 0:00:38]} 39. Bc1 0-1

[Event "XI Paracin Festival 2018"]
[Site "Paracin"]
[Date "2018.07.06"]
[Round "1"]
[White "Sahil, Tickoo"]
[Black "Lorparizangeneh, Shahin"]
[Result "0-1"]
[ECO "D85"]
[WhiteElo "2179"]
[BlackElo "2493"]
[Annotator "ChessBase"]
[PlyCount "104"]
[EventDate "2018.07.06"]
[EventType "swiss"]
[EventCountry "SRB"]
[SourceTitle "playchess.com"]
[Source "ChessBase"]
[SourceQuality "1"]
[TimeControl "5400+30"]

1. d4 {[%emt 0:00:00]} Nf6 {[%emt 0:00:00]} 2. c4 {[%emt 0:00:00]} g6 {[%emt 0:00:16]} 3. Nc3 {[%emt 0:00:09]} d5 {[%emt 0:00:05]} 4. cxd5 {[%emt 0:00:05]} Nxd5 {[%emt 0:00:04]} 5. e4 {[%emt 0:00:05]} Nxc3 {[%emt 0:00:03]} 6. bxc3 {[%emt 0:00:09]} Bg7 {[%emt 0:00:03]} 7. Be3 {[%emt 0:00:33]} c5 {[%emt 0:00:18]} 8. Rc1 {[%emt 0:00:05]} O-O {[%emt 0:01:13]} 9. Nf3 {[%emt 0:00:07]} Bg4 {[%emt 0:02:24]} 10. d5 {[%emt 0:00:50]} Nd7 {[%emt 0:03:54]} 11. Be2 {[%emt 0:05:09]} Qa5 {[%emt 0:02:25]} 12. Qd2 {[%emt 0:10:23]} c4 {[%emt 0:06:05]} 13. Bd4 {[%emt 0:29:33]} Bxf3 {[%emt 0:13:08]} 14. Bxf3 {[%emt 0:05:48]} Bxd4 {[%emt 0:06:11]} 15. Qxd4 {[%emt 0:02:20]} b5 {[%emt 0:06:57]} 16. O-O {[%emt 0:02:34]} Qc7 {[%emt 0:02:28]} 17. Rfd1 {[%emt 0:03:53]} Rab8 {[%emt 0:03:50]} 18. Be2 {[%emt 0:03:38]} Rfd8 {[%emt 0:08:03]} 19. g3 {[%emt 0:03:14]} Qb6 {[%emt 0:02:14]} 20. Kg2 {[%emt 0:06:49]} Qxd4 {[%emt 0:05:32]} 21. Rxd4 {[%emt 0:00:12]} Rb6 {[%emt 0:00:18]} 22. a4 {[%emt 0:18:30]} a6 {[%emt 0:17:18]} 23. Rb1 {[%emt 0:04:48]} Rdb8 {[%emt 0:01:40]} 24. axb5 {[%emt 0:00:07]} axb5 {[%emt 0:00:16]} 25. Rd2 {[%emt 0:02:15]} Nc5 {[%emt 0:08:47]} 26. f3 {[%emt 0:00:01]} Kf8 {[%emt 0:03:08]} 27. Rdb2 {[%emt 0:01:00]} Na4 {[%emt 0:01:23]} 28. Rc2 {[%emt 0:00:01]} Ke8 {[%emt 0:01:56]} 29. Rb4 {[%emt 0:00:11]} Nc5 {[%emt 0:00:28]} 30. Rcb2 {[%emt 0:00:58]} R6b7 {[%emt 0:00:18]} 31. Kf2 {[%emt 0:00:48]} Kd7 {[%emt 0:00:27]} 32. Ke3 {[%emt 0:00:16]} Na6 {[%emt 0:01:14]} 33. Kd4 {[%emt 0:01:14]} Kc7 {[%emt 0:00:25]} 34. f4 {[%emt 0:00:35]} Nxb4 {[%emt 0:00:30]} 35. Rxb4 {[%emt 0:00:01]} Ra8 {[%emt 0:00:45]} 36. Rb2 {[%emt 0:01:06]} e6 {[%emt 0:01:23]} 37. dxe6 {[%emt 0:00:28]} fxe6 {[%emt 0:00:01]} 38. Kc5 {[%emt 0:00:31]} Ra3 {[%emt 0:00:51]} 39. Bg4 {[%emt 0:00:29]} Rb6 {[%emt 0:01:49]} 40. Rxb5 {[%emt 0:00:26]} Rxb5+ {[%emt 0:00:54]} 41. Kxb5 {[%emt 0:00:01]} Rxc3 {[%emt 0:00:47]} 42. Bxe6 {[%emt 0:00:02]} Rc2 {[%emt 0:00:16]} 43. Bxc4 {[%emt 0:00:15]} Rxh2 {[%emt 0:00:02]} 44. Bg8 {[%emt 0:01:37]} Kd6 {[%emt 0:00:57]} 45. Kc4 {[%emt 0:00:11]} Rh3 {[%emt 0:00:51]} 46. e5+ {[%emt 0:00:54]} Ke7 {[%emt 0:00:01]} 47. Kd5 {[%emt 0:00:37]} h5 {[%emt 0:00:11]} 48. f5 {[%emt 0:00:29]} gxf5 {[%emt 0:00:06]} 49. Bh7 {[%emt 0:00:07]} Rxg3 {[%emt 0:00:10]} 50. Bxf5 {[%emt 0:00:05]} h4 {[%emt 0:00:07]} 51. Ke4 {[%emt 0:00:51]} h3 {[%emt 0:00:07]} 52. Kf4 {[%emt 0:00:01]} h2 {[%emt 0:00:10]} 0-1

[Event "XI Paracin Festival 2018"]
[Site "Paracin"]
[Date "2018.07.06"]
[Round "1"]
[White "Parnali, S Dharia"]
[Black "Ivic, Velimir"]
[Result "1-0"]
[ECO "E94"]
[WhiteElo "2170"]
[BlackElo "2432"]
[Annotator "NA"]
[PlyCount "105"]
[EventDate "2018.07.06"]
[EventType "swiss"]
[EventCountry "SRB"]
[SourceTitle "playchess.com"]
[Source "ChessBase"]
[SourceQuality "1"]
[TimeControl "5400+30"]

1. d4 {[%emt 0:00:00]} Nf6 {[%emt 0:00:00]} 2. c4 {[%emt 0:00:05]} g6 {[%emt 0:00:00]} 3. Nc3 {[%emt 0:00:06]} Bg7 {[%emt 0:00:00]} 4. e4 {[%emt 0:00:30]} d6 {[%emt 0:00:00]} 5. Nf3 {[%emt 0:00:25]} O-O {[%emt 0:00:04]} 6. Be2 {[%emt 0:00:15]} e5 {[%emt 0:00:58]} 7. O-O {[%emt 0:00:11]} Na6 {[%emt 0:02:43]} 8. dxe5 {[%emt 0:07:35]} dxe5 {[%emt 0:00:06]} 9. b3 {[%emt 0:00:29] E94: King's Indian: Classical: 6 Be2 e5 7 0-0: Various Black 7th moves} (9. Be3 c6 10. Qxd8 Rxd8 11. Rfd1 Re8 12. h3 Bf8 13. Nd2 Nc5 14. b4 Ne6 15. c5 Nd4 16. Bd3 a5 17. a3 Rd8 18. Nc4 axb4 19. axb4 Rxa1 20. Rxa1 {½-½ (97) Grachev,B (2657)-Shimanov,A (2606) Kaliningrad 2015}) 9... Qe7 {[%emt 0:21:03]} 10. Nd5 {[%emt 0:02:21]} Qd6 {[%emt 0:05:57]} 11. Nxf6+ $146 {[%emt 0:04:41]} ({Predecessor:} 11. Bg5 Nxd5 12. Qxd5 Qa3 13. Bc1 Qe7 14. Bg5 Qe6 15. Rfd1 c6 16. Qd6 Qxd6 17. Rxd6 {½-½ (61) Bochkarev,A (2361)-Nanu,C (2412) Bucharest 2001}) 11... Qxf6 {[%emt 0:01:08]} 12. Ba3 {[%emt 0:00:27]} Rd8 {[%emt 0:04:11]} 13. Qc2 {[%emt 0:00:17]} Bg4 {[%emt 0:10:36]} 14. Ne1 {[%emt 0:01:58]} Be6 {[%emt 0:08:18]} 15. Nf3 {[%emt 0:04:18]} Nb8 {[%emt 0:03:20]} 16. Rad1 {[%emt 0:01:23]} Nc6 {[%emt 0:01:01]} 17. Rxd8+ {[%emt 0:03:14]} Rxd8 {[%emt 0:00:14]} 18. Rd1 {[%emt 0:00:12]} Re8 {[%emt 0:06:52]} 19. Bb2 {[%emt 0:05:43]} Qe7 {[%emt 0:02:21]} 20. Bc3 {[%emt 0:00:30]} a5 {[%emt 0:04:15]} 21. Ne1 {[%emt 0:01:02]} Nd4 {[%emt 0:02:15]} 22. Qb2 {[%emt 0:00:54]} b6 {[%emt 0:01:37]} 23. Nd3 {[%emt 0:00:17]} c5 {[%emt 0:03:38]} 24. Bf1 {[%emt 0:03:12]} Rd8 {[%emt 0:01:11]} 25. Bxd4 {[%emt 0:01:34]} Rxd4 {[%emt 0:00:55]} 26. Qe2 {[%emt 0:00:40]} Qd6 {[%emt 0:05:15]} 27. Nb2 {[%emt 0:00:30]} Bd7 {[%emt 0:13:04]} 28. g3 {[%emt 0:03:02]} h5 {[%emt 0:00:44]} 29. Bg2 {[%emt 0:00:36]} Bh6 {[%emt 0:00:51]} 30. Rd3 {[%emt 0:01:55]} Kg7 {[%emt 0:01:19]} 31. Qd1 {[%emt 0:00:41]} h4 {[%emt 0:00:53]} 32. Rxd4 {[%emt 0:00:15]} cxd4 {[%emt 0:00:24]} 33. Nd3 {[%emt 0:00:33]} h3 {[%emt 0:00:34]} 34. Bf3 {[%emt 0:00:14]} Bg5 {[%emt 0:00:39]} 35. Qc2 {[%emt 0:00:42]} f5 {[%emt 0:00:27]} 36. Kf1 {[%emt 0:01:14]} Kf6 {[%emt 0:00:26]} 37. c5 {[%emt 0:01:05]} Qc7 {[%emt 0:00:23]} 38. Qc4 {[%emt 0:00:44]} Kg7 {[%emt 0:00:43]} 39. a4 {[%emt 0:00:16]} Bc6 {[%emt 0:00:31]} 40. cxb6 {[%emt 0:00:23]} Qd6 {[%emt 0:00:32]} (40... Qxb6 $142 41. Nxe5 Be8 42. exf5 gxf5) 41. Nxe5 {[%emt 0:02:37]} Qxe5 {[%emt 0:00:20]} 42. Qxc6 {[%emt 0:00:08]} Kh6 {[%emt 0:00:35]} 43. exf5 {[%emt 0:00:58]} Bf6 {[%emt 0:00:20]} 44. Qc1+ {[%emt 0:03:26]} Bg5 {[%emt 0:00:10]} 45. Qc6 {[%emt 0:07:10]} Bf6 {[%emt 0:00:02]} 46. Qd5 {[%emt 0:02:14]} Qe7 {[%emt 0:01:25]} 47. fxg6 {[%emt 0:00:26]} Be5 {[%emt 0:00:38]} 48. b7 {[%emt 0:06:13]} Qg5 {[%emt 0:00:10]} 49. Qc5 {[%emt 0:02:00]} Qf6 {[%emt 0:00:48]} 50. Be4 {[%emt 0:02:32]} Qa6+ {[%emt 0:00:30]} 51. Qb5 {[%emt 0:00:34]} Qe6 {[%emt 0:00:07]} 52. Qc4 {[%emt 0:00:51]} Qe7 {[%emt 0:00:56]} 53. Qg8 {[%emt 0:03:06]} 1-0

[Event "XI Paracin Festival 2018"]
[Site "Paracin"]
[Date "2018.07.06"]
[Round "1"]
[White "Uuriintuya, Uurtsaikh"]
[Black "Lajthajm, Borko"]
[Result "1-0"]
[ECO "B43"]
[WhiteElo "2158"]
[BlackElo "2422"]
[Annotator "ChessBase"]
[PlyCount "105"]
[EventDate "2018.07.06"]
[EventType "swiss"]
[EventCountry "SRB"]
[SourceTitle "playchess.com"]
[Source "ChessBase"]
[SourceQuality "1"]
[TimeControl "5400+30"]

1. e4 {[%emt 0:00:00]} c5 {[%emt 0:00:00]} 2. Nf3 {[%emt 0:00:07]} e6 {[%emt 0:00:00]} 3. d4 {[%emt 0:00:17]} cxd4 {[%emt 0:00:00]} 4. Nxd4 {[%emt 0:00:05]} a6 {[%emt 0:00:04]} 5. Nc3 {[%emt 0:00:50]} Qc7 {[%emt 0:00:08]} 6. Be2 {[%emt 0:00:36]} Nf6 {[%emt 0:00:26]} 7. O-O {[%emt 0:00:57]} Bb4 {[%emt 0:01:15]} 8. Bg5 {[%emt 0:10:55]} Bxc3 {[%emt 0:02:37]} 9. Bxf6 {[%emt 0:00:26]} gxf6 {[%emt 0:00:18]} 10. bxc3 {[%emt 0:00:03]} Qxc3 {[%emt 0:00:12]} 11. Rb1 {[%emt 0:06:47]} Nc6 {[%emt 0:02:04]} 12. Nxc6 {[%emt 0:04:41]} bxc6 {[%emt 0:00:05]} 13. f4 {[%emt 0:23:55]} Qe3+ {[%emt 0:10:36]} 14. Kh1 {[%emt 0:00:37]} Ke7 {[%emt 0:01:38]} 15. e5 {[%emt 0:12:57]} fxe5 {[%emt 0:00:51]} 16. Rb3 {[%emt 0:00:12]} Qc5 {[%emt 0:00:49]} 17. fxe5 {[%emt 0:00:28]} Qxe5 {[%emt 0:00:29]} 18. Qe1 {[%emt 0:03:38]} f5 {[%emt 0:12:45]} 19. Qh4+ {[%emt 0:10:49]} Qf6 {[%emt 0:01:49]} 20. Qc4 {[%emt 0:01:22]} h5 {[%emt 0:07:28]} 21. Qc5+ {[%emt 0:03:36]} Kf7 {[%emt 0:03:42]} 22. Qd6 {[%emt 0:02:48]} a5 {[%emt 0:01:52]} 23. Rxf5 {[%emt 0:02:47]} Qxf5 {[%emt 0:03:45]} 24. Rf3 {[%emt 0:00:06]} Qxf3 {[%emt 0:01:05]} 25. Bxf3 {[%emt 0:00:15]} a4 {[%emt 0:02:48]} 26. c4 {[%emt 0:01:44]} Ra5 {[%emt 0:00:37]} 27. c5 {[%emt 0:00:23]} Rb5 {[%emt 0:00:21]} 28. h3 {[%emt 0:00:48]} Rb4 {[%emt 0:04:08]} 29. Qe5 {[%emt 0:00:35]} Rh6 {[%emt 0:05:34]} 30. Qg5 {[%emt 0:01:57]} Rh7 {[%emt 0:01:05]} 31. Bxh5+ {[%emt 0:01:42]} Rxh5 {[%emt 0:02:12]} 32. Qxh5+ {[%emt 0:00:08]} Ke7 {[%emt 0:01:02]} 33. Qg5+ {[%emt 0:00:22]} Kf7 {[%emt 0:00:05]} 34. h4 {[%emt 0:01:10]} Ba6 {[%emt 0:00:36]} 35. h5 {[%emt 0:00:23]} Bd3 {[%emt 0:00:46]} 36. Qd2 {[%emt 0:00:15]} Rb1+ {[%emt 0:01:24]} 37. Kh2 {[%emt 0:00:10]} Bf5 {[%emt 0:02:28]} 38. Qxd7+ {[%emt 0:00:10]} Kf6 {[%emt 0:00:03]} 39. h6 {[%emt 0:00:22]} Ke5 {[%emt 0:00:30]} 40. h7 {[%emt 0:00:57]} Bxh7 {[%emt 0:01:45]} 41. Qxh7 {[%emt 0:00:07]} Re1 {[%emt 0:01:28]} 42. Qc7+ {[%emt 0:00:17]} Kd4 {[%emt 0:00:08]} 43. Qxc6 {[%emt 0:00:08]} e5 {[%emt 0:00:06]} 44. Qxa4+ {[%emt 0:00:08]} Kd5 {[%emt 0:00:23]} 45. c6 {[%emt 0:00:16]} Rc1 {[%emt 0:00:23]} 46. Qb5+ {[%emt 0:00:58]} Kd6 {[%emt 0:00:06]} 47. Qb4+ {[%emt 0:00:10]} Kxc6 {[%emt 0:00:07]} 48. Qe4+ {[%emt 0:00:05]} Kd6 {[%emt 0:00:12]} 49. a4 {[%emt 0:00:29]} Rd1 {[%emt 0:00:07]} 50. a5 {[%emt 0:00:18]} Rd4 {[%emt 0:00:06]} 51. Qb7 {[%emt 0:00:16]} e4 {[%emt 0:00:15]} 52. a6 {[%emt 0:00:14]} e3 {[%emt 0:00:04]} 53. Kg3 {[%emt 0:00:19]} 1-0

[Event "XI Paracin Festival 2018"]
[Site "Paracin"]
[Date "2018.07.06"]
[Round "1"]
[White "Peycheva, Gergana"]
[Black "Stankovic, Milos"]
[Result "0-1"]
[ECO "A50"]
[WhiteElo "2157"]
[BlackElo "2420"]
[Annotator "ChessBase"]
[PlyCount "60"]
[EventDate "2018.07.06"]
[EventType "swiss"]
[EventCountry "SRB"]
[SourceTitle "playchess.com"]
[Source "ChessBase"]
[SourceQuality "1"]
[TimeControl "5400+30"]

1. d4 Nf6 {[%emt 0:00:35]} 2. c4 g6 3. f3 {[%emt 0:01:05]} Nc6 {[%emt 0:02:56]} 4. e4 {[%emt 0:02:05]} e5 {[%emt 0:04:19]} 5. d5 {[%emt 0:02:56]} Nd4 {[%emt 0:02:08]} 6. Nc3 {[%emt 0:04:37]} Bg7 {[%emt 0:01:21]} 7. Nge2 {[%emt 0:03:23]} c5 {[%emt 0:04:21]} 8. Be3 {[%emt 0:06:14]} d6 {[%emt 0:05:13]} 9. Qd2 {[%emt 0:03:18]} O-O {[%emt 0:02:32]} 10. h4 {[%emt 0:11:55]} a6 {[%emt 0:04:33]} 11. Nc1 {[%emt 0:03:58]} Nh5 {[%emt 0:02:01]} 12. Bd3 {[%emt 0:02:54]} f5 {[%emt 0:07:16]} 13. Bg5 {[%emt 0:03:19]} Qe8 {[%emt 0:01:28]} 14. Bh6 {[%emt 0:07:29]} Ng3 {[%emt 0:06:25]} 15. Bxg7 {[%emt 0:01:15]} Kxg7 {[%emt 0:00:39]} 16. Rh3 {[%emt 0:03:08]} Nxe4 {[%emt 0:04:52]} 17. fxe4 {[%emt 0:04:08]} fxe4 {[%emt 0:00:15]} 18. Re3 {[%emt 0:01:34]} exd3 {[%emt 0:00:32]} 19. Nxd3 {[%emt 0:00:08]} b5 {[%emt 0:02:40]} 20. O-O-O {[%emt 0:02:05]} Bf5 {[%emt 0:03:54]} 21. Nf2 {[%emt 0:03:11]} Bc2 {[%emt 0:06:20]} 22. Rf1 {[%emt 0:04:11]} b4 {[%emt 0:01:07]} 23. Ne2 {[%emt 0:02:06]} Qa4 {[%emt 0:00:56]} 24. Nxd4 {[%emt 0:03:44]} cxd4 {[%emt 0:00:51]} 25. Rf3 {[%emt 0:05:09]} Rxf3 {[%emt 0:02:40]} 26. gxf3 {[%emt 0:00:05]} b3 {[%emt 0:00:20]} 27. Qg5 {[%emt 0:01:36]} Rf8 {[%emt 0:00:52]} 28. h5 {[%emt 0:02:34]} Qxc4 {[%emt 0:02:18]} 29. Qe7+ {[%emt 0:00:15]} Kg8 {[%emt 0:00:14]} 30. Qe6+ {[%emt 0:01:16]} Kh8 {[%emt 0:00:12]} 0-1

[Event "XI Paracin Festival 2018"]
[Site "Paracin"]
[Date "2018.07.06"]
[Round "1"]
[White "Krstic, Milos"]
[Black "Djordjevic, Vuk D"]
[Result "0-1"]
[ECO "C18"]
[WhiteElo "2137"]
[BlackElo "2403"]
[Annotator "ChessBase"]
[PlyCount "57"]
[EventDate "2018.07.06"]
[EventType "swiss"]
[EventCountry "SRB"]
[SourceTitle "playchess.com"]
[Source "ChessBase"]
[SourceQuality "1"]
[TimeControl "5400+30"]

1. e4 {[%emt 0:00:00]} e6 {[%emt 0:00:00]} 2. d4 {[%emt 0:00:00]} d5 {[%emt 0:00:05]} 3. Nc3 {[%emt 0:01:50]} Bb4 {[%emt 0:00:07]} 4. e5 {[%emt 0:02:19]} c5 {[%emt 0:00:10]} 5. a3 {[%emt 0:00:58]} Bxc3+ {[%emt 0:00:18]} 6. bxc3 {[%emt 0:00:05]} Ne7 {[%emt 0:02:31]} 7. Qg4 {[%emt 0:02:48]} Qc7 {[%emt 0:00:00]} 8. Qxg7 {[%emt 0:01:58]} Rg8 {[%emt 0:00:00]} 9. Qxh7 {[%emt 0:00:11]} cxd4 {[%emt 0:00:00]} 10. Ne2 {[%emt 0:03:58]} Nbc6 {[%emt 0:00:16]} 11. f4 {[%emt 0:02:54]} Bd7 {[%emt 0:06:39]} 12. h4 {[%emt 0:08:11]} O-O-O {[%emt 0:02:59]} 13. Qd3 {[%emt 0:06:24]} dxc3 {[%emt 0:00:21]} 14. h5 {[%emt 0:04:01]} Nf5 {[%emt 0:03:42]} 15. h6 {[%emt 0:11:01]} Rg6 {[%emt 0:01:48]} 16. h7 {[%emt 0:04:07]} Rh8 {[%emt 0:00:07]} 17. Qxc3 {[%emt 0:05:48]} Be8 {[%emt 0:22:41]} 18. Bd2 {[%emt 0:11:33]} f6 {[%emt 0:02:36]} 19. exf6 {[%emt 0:03:44]} Rxh7 {[%emt 0:01:32]} 20. Rxh7 {[%emt 0:01:26]} Qxh7 {[%emt 0:00:05]} 21. O-O-O {[%emt 0:03:36]} Qh4 {[%emt 0:21:04]} 22. Kb1 {[%emt 0:14:10]} Nd6 {[%emt 0:20:37]} 23. g3 {[%emt 0:06:23]} Qh5 {[%emt 0:03:11]} 24. Qe3 {[%emt 0:02:47]} Rxf6 {[%emt 0:01:42]} 25. Bc3 {[%emt 0:01:10]} Nc4 {[%emt 0:03:37]} 26. Qf2 {[%emt 0:00:53]} Rh6 {[%emt 0:00:48]} 27. Bb2 {[%emt 0:00:34]} Bg6 {[%emt 0:01:22]} 28. Bg2 {[%emt 0:00:38]} Bf5 {[%emt 0:01:43]} 29. Nd4 {[%emt 0:00:31]} 0-1